[Event "Swiss National League-A 2024"]
[Site "Luzern"]
[Date "2024.10.12"]
[Round "8.18"]
[White "Bogner, Sebastian"]
[Black "Patuzzo, Fabrizio"]
[Result "1-0"]
[ECO "B12"]
[WhiteElo "2539"]
[BlackElo "2281"]
[Annotator "TA"]
[PlyCount "57"]
[EventDate "2023.10.03"]
[EventType "team-tourn"]
[EventCountry "SUI"]
[SourceTitle "playchess.com"]
[Source "ChessBase"]
[SourceQuality "1"]
[TimeControl "40/8400+30:20/3000+30:900+30"]

{[%evp 11,57,37,42,47,49,49,44,23,30,28,86,16,6,14,39,49,58,81,189,173,600,588,572,589,643,643,657,612,656,686,707,690,905,685,880,868,1030,848,1417,1398,1458,1439,2283,2318,4313,3059,3514,3140]} 1. e4 {[%emt 0:40:04]} c6 {[%emt 0:40:16]} 2. d4 {[%emt 0:00:04]} d5 {[%emt 0:00:07]} 3. e5 {[%emt 0:00:02]} Bf5 {[%emt 0:00:31]} 4. Nf3 {[%emt 0:00:05]} e6 {[%emt 0:00:30]} 5. Be2 {[%emt 0:00:04]} Be7 {[%emt 0:01:57]} 6. O-O {[%emt 0:00:26]} Nd7 {[%emt 0:00:27]} 7. a4 {[%emt 0:16:13][%cal Ba2a4,Ba4a5][%mdl 32]} h5 {[%emt 0:00:37]} 8. a5 {[%emt 0:00:42]} a6 {[%emt 0:05:06]} 9. Nbd2 {[%emt 0:03:45] White is slightly better.} g5 {[%emt 0:03:08]} 10. Ne1 {[%emt 0:01:48]} Nh6 {[%emt 0:04:24]} (10... c5 $11) 11. c3 {[%emt 0:18:32]} (11. Bxh5 $16 {Black should prevent g4.} g4 12. Nb3) 11... Qc7 $11 {[%emt 0:01:10]} 12. b4 {[%emt 0:01:09]} f6 {[%emt 0:06:20]} 13. Bxh5+ {[%emt 0:04:42]} Nf7 {[%emt 0:02:00]} 14. g4 {[%emt 0:04:36][%cal Bg2g4,Bg4f5,Bf5e6][%mdl 32]} fxe5 {[%emt 0:11:19] Black is on the road to losing.} (14... Bh7 $16 {was worth a try.}) 15. gxf5 $18 {[%emt 0:01:35]} O-O-O $2 {[%emt 0:33:03]} (15... exf5 16. Bxf7+ Kxf7) 16. fxe6 {[%emt 0:17:02] White is clearly winning.} Nf6 {[%emt 0:03:10][%cal Bd7f6,Bf6e4,Be4c3][%mdl 32]} 17. Bxf7 {[%emt 0:00:26]} e4 {[%emt 0:01:17][%csl Gh8][%cal Rc7h2] [#] Dodges Ndf3} 18. f4 $1 {[%emt 0:01:27]} Rh3 {[%emt 0:04:14] [#]} (18... Rh7 19. Ndf3) 19. Ndf3 $1 {[%emt 0:01:35]} Rdh8 {[%emt 0:05:52] [#]} (19... exf3 20. Rxf3) 20. Ra2 $1 {[%emt 0:02:35]} exf3 {[%emt 0:05:33]} 21. Rxf3 {[%emt 0:04:33]} (21. fxg5 $2 {loses.} Rg3+ 22. Ng2 (22. hxg3 $2 {perishes.} Qxg3+ $19) 22... Rxg5 23. Qxf3 (23. Bxg5 $2 {too greedy.} Qxh2+ 24. Kf2 fxg2 $19) 23... Qxh2+ 24. Kf2 Rg3 $19) 21... Ne4 {[%emt 0:01:51]} 22. Rg2 {[%emt 0:04:09] Threatens to win with Rxh3.} Nxc3 {[%emt 0:02:22]} 23. Qd3 {[%emt 0:01:49]} Rxf3 {[%emt 0:01:56]} 24. Nxf3 {[%emt 0:00:32]} Bxb4 {[%emt 0:01:14]} 25. fxg5 {[%emt 0:00:42][%cal Bf4g5,Bg5g6][%mdl 32]} Qxa5 {[%emt 0:01:55]} 26. g6 {[%emt 0:00:51] Hoping for g7.} Qa1 {[%emt 0:00:18]} 27. Qf1 {[%emt 0:00:13]} Bf8 {[%emt 0:00:31] [#]} 28. e7 $1 {[%emt 0:00:38]} Bxe7 {[%emt 0:01:00]} (28... Bg7 29. Be6+) 29. Be6+ {[%emt 0:00:03] Weighted Error Value: White=0.38/Black=0.56.  Mistake:       	White=1     	Black=3      OK:         	White=5     	Black=2      Best:        	White=1     	---} 1-0

[Event "Swiss National League-A 2024"]
[Site "Luzern"]
[Date "2024.10.12"]
[Round "8.19"]
[White "Mantovani, Renzo"]
[Black "Maier, Christian"]
[Result "1/2-1/2"]
[ECO "A21"]
[WhiteElo "2198"]
[BlackElo "2228"]
[Annotator "RC"]
[PlyCount "117"]
[EventDate "2023.10.03"]
[EventType "team-tourn"]
[EventCountry "SUI"]
[SourceTitle "playchess.com"]
[Source "ChessBase"]
[SourceQuality "1"]
[TimeControl "40/8400+30:20/3000+30:900+30"]

1. c4 {[%emt 0:40:09]} e5 {[%emt 0:40:29]} 2. Nc3 {[%emt 0:00:10]} Bb4 {[%emt 0:01:54]} 3. d3 {[%emt 0:00:22]} Bxc3+ {[%emt 0:02:28]} 4. bxc3 {[%emt 0:00:05]} d6 {[%emt 0:01:02]} 5. g3 {[%emt 0:00:49]} Nd7 {[%emt 0:01:44]} 6. Bg2 {[%emt 0:00:21]} Ne7 {[%emt 0:01:23]} 7. Rb1 {[%emt 0:00:56]} O-O {[%emt 0:01:30]} 8. f4 {[%emt 0:04:50]} exf4 {[%emt 0:03:23]} 9. Bxf4 {[%emt 0:02:31]} Ng6 {[%emt 0:00:27]} 10. Qd2 {[%emt 0:01:34]} Nxf4 {[%emt 0:02:43]} 11. Qxf4 {[%emt 0:00:16]} Re8 {[%emt 0:00:21]} 12. Nf3 {[%emt 0:01:24]} Nc5 {[%emt 0:03:05]} 13. O-O {[%emt 0:21:47]} Ne6 {[%emt 0:06:13]} 14. Qd2 {[%emt 0:05:48]} Rb8 {[%emt 0:09:37]} 15. Nd4 {[%emt 0:04:39]} Nxd4 {[%emt 0:10:54]} 16. cxd4 {[%emt 0:00:11]} Qe7 {[%emt 0:00:24]} 17. Bd5 {[%emt 0:09:09]} Rf8 {[%emt 0:06:13]} 18. Rf4 {[%emt 0:00:45]} b6 {[%emt 0:00:53]} 19. Rbf1 {[%emt 0:00:18]} Be6 {[%emt 0:00:04]} 20. Qe3 {[%emt 0:03:19]} Rbe8 {[%emt 0:05:49]} 21. Qf3 {[%emt 0:15:19]} Bxd5 {[%emt 0:02:07]} 22. Qxd5 {[%emt 0:00:23]} Qe6 {[%emt 0:00:50]} 23. Qxe6 {[%emt 0:01:33]} Rxe6 {[%emt 0:00:57]} 24. e4 {[%emt 0:01:04]} g6 {[%emt 0:03:41]} 25. d5 {[%emt 0:02:17]} Re7 {[%emt 0:00:22]} 26. a4 {[%emt 0:00:21]} Kg7 {[%emt 0:00:08]} 27. g4 {[%emt 0:02:25]} h6 {[%emt 0:00:10]} 28. Kf2 {[%emt 0:01:54]} Re5 {[%emt 0:07:40]} 29. h4 {[%emt 0:03:25]} g5 {[%emt 0:06:08]} 30. Rf3 {[%emt 0:05:20]} gxh4 {[%emt 0:01:45]} 31. Rh3 {[%emt 0:03:18]} Rg5 {[%emt 0:06:13]} 32. Rxh4 {[%emt 0:00:16]} Re8 {[%emt 0:08:57]} 33. Rfh1 {[%emt 0:00:35]} Rg6 {[%emt 0:01:06]} 34. Kf3 {[%emt 0:00:38]} Re5 {[%emt 0:00:13]} 35. a5 {[%emt 0:02:48]} Reg5 {[%emt 0:02:12]} 36. axb6 {[%emt 0:02:55]} axb6 {[%emt 0:00:08]} 37. Ra1 {[%emt 0:00:27]} Re5 {[%emt 0:06:13]} 38. Ra7 {[%emt 0:03:44]} Re7 {[%emt 0:00:04]} 39. Ra8 {[%emt 0:01:02]} Rg5 {[%emt 0:01:50]} 40. Rc8 {[%emt 0:00:22]} Rg6 {[%emt 0:03:34]} 41. Rh5 {[%emt 0:50:59]} Rf6+ {[%emt 0:50:15]} 42. Rf5 {[%emt 0:01:16]} Rg6 {[%emt 0:04:21]} 43. Kf4 {[%emt 0:05:20]} f6 {[%emt 0:00:00]} 44. Rh5 {[%emt 0:00:00]} Kh7 {[%emt 0:00:00]} 45. Rh4 {[%emt 0:00:00]} Rg5 {[%emt 0:00:00]} 46. Ke3 {[%emt 0:00:00]} Rgg7 {[%emt 0:00:00]} 47. Kd4 {[%emt 0:00:00]} Kg6 {[%emt 0:00:00]} 48. Kc3 {[%emt 0:00:00]} Rh7 {[%emt 0:00:00]} 49. Rh5 {[%emt 0:00:00]} Re5 {[%emt 0:00:00]} 50. Rh4 {[%emt 0:00:00]} Kg5 {[%emt 0:00:00]} 51. Rh1 {[%emt 0:00:00]} Kxg4 {[%emt 0:00:00]} 52. Rg8+ {[%emt 0:00:00]} Rg5 {[%emt 0:00:00]} 53. Rf8 {[%emt 0:00:00]} h5 {[%emt 0:00:00]} 54. Rxf6 {[%emt 0:00:00]} h4 {[%emt 0:00:00]} 55. Rff1 {[%emt 0:00:00]} h3 {[%emt 0:00:00]} 56. Rfg1+ {[%emt 0:00:00]} Kf4 {[%emt 0:00:00]} 57. Rf1+ {[%emt 0:00:00]} Kg4 {[%emt 0:00:00]} 58. Rfg1+ {[%emt 0:00:00]} Kf4 {[%emt 0:00:00]} 59. Rf1+ {[%emt 0:00:00]} 1/2-1/2

[Event "Swiss National League-A 2024"]
[Site "Luzern"]
[Date "2024.10.12"]
[Round "8.20"]
[White "Martins, David Pires Tavares"]
[Black "Sedina, Elena"]
[Result "0-1"]
[ECO "A07"]
[WhiteElo "2410"]
[BlackElo "2192"]
[Annotator "RC"]
[PlyCount "94"]
[EventDate "2023.10.03"]
[EventType "team-tourn"]
[EventCountry "SUI"]
[SourceTitle "playchess.com"]
[Source "ChessBase"]
[SourceQuality "1"]
[TimeControl "40/8400+30:20/3000+30:900+30"]

1. Nf3 {[%emt 0:40:20]} d5 {[%emt 0:40:12]} 2. g3 {[%emt 0:00:22]} Bg4 {[%emt 0:00:36]} 3. Bg2 {[%emt 0:00:10]} c6 {[%emt 0:02:40]} 4. O-O {[%emt 0:01:34]} e6 {[%emt 0:02:03]} 5. d4 {[%emt 0:03:23]} Nd7 {[%emt 0:04:48]} 6. h3 {[%emt 0:05:47]} Bh5 {[%emt 0:00:21]} 7. Bf4 {[%emt 0:00:35]} Ngf6 {[%emt 0:05:03]} 8. Nbd2 {[%emt 0:01:07]} Be7 {[%emt 0:14:04]} 9. g4 {[%emt 0:05:48]} Bg6 {[%emt 0:00:06]} 10. Nh4 {[%emt 0:00:07]} Qb6 {[%emt 0:16:02]} 11. Nxg6 {[%emt 0:00:27]} hxg6 {[%emt 0:00:04]} 12. Nb3 {[%emt 0:08:48]} Ne4 {[%emt 0:18:18]} 13. Qc1 {[%emt 0:05:14]} a5 {[%emt 0:21:04]} 14. e3 {[%emt 0:14:11]} Ng5 {[%emt 0:08:32]} 15. Bxg5 {[%emt 0:03:23]} Bxg5 {[%emt 0:00:00]} 16. c4 {[%emt 0:00:13]} a4 {[%emt 0:04:45]} 17. Nd2 {[%emt 0:00:23]} Be7 {[%emt 0:00:36]} 18. Qc2 {[%emt 0:03:33]} O-O {[%emt 0:04:02]} 19. Rac1 {[%emt 0:01:52]} Rfe8 {[%emt 0:04:13]} 20. Rfd1 {[%emt 0:00:33]} Bb4 {[%emt 0:01:14]} 21. Nf3 {[%emt 0:01:56]} Qd8 {[%emt 0:00:18]} 22. e4 {[%emt 0:04:50]} dxe4 {[%emt 0:00:09]} 23. Qxe4 {[%emt 0:00:03]} Qe7 {[%emt 0:01:17]} 24. Qe2 {[%emt 0:07:10]} Bd6 {[%emt 0:00:59]} 25. Qd2 {[%emt 0:02:28]} Qf6 {[%emt 0:00:38]} 26. Rc2 {[%emt 0:01:25]} Qd8 {[%emt 0:00:45]} 27. Qd3 {[%emt 0:04:25]} Qa5 {[%emt 0:00:32]} 28. Re2 {[%emt 0:01:59]} Rad8 {[%emt 0:00:10]} 29. Qc3 {[%emt 0:03:00]} Bb4 {[%emt 0:00:11]} 30. Qe3 {[%emt 0:00:12]} Qa7 {[%emt 0:01:07]} 31. Ng5 {[%emt 0:00:48]} Nf6 {[%emt 0:00:27]} 32. Ne4 {[%emt 0:02:33]} Nxe4 {[%emt 0:00:12]} 33. Bxe4 {[%emt 0:00:09]} Re7 {[%emt 0:00:53]} 34. a3 {[%emt 0:02:02]} Ba5 {[%emt 0:00:14]} 35. c5 {[%emt 0:08:27]} b6 {[%emt 0:00:43]} 36. Rc1 {[%emt 0:02:51]} Red7 {[%emt 0:00:36]} 37. cxb6 {[%emt 0:03:28]} Bxb6 {[%emt 0:00:05]} 38. Bxc6 {[%emt 0:00:19]} Rxd4 {[%emt 0:00:10]} 39. Qf3 {[%emt 0:00:58]} Rd3 {[%emt 0:00:24]} 40. Qf4 {[%emt 0:01:53]} R8d4 {[%emt 0:00:50]} 41. Re4 {[%emt 0:55:56]} Bc7 {[%emt 0:17:55]} 42. Qg5 {[%emt 0:00:00]} Rg3+ {[%emt 0:02:58]} 43. Kf1 {[%emt 0:00:00]} Rxe4 {[%emt 0:00:43]} 44. Bxe4 {[%emt 0:00:00]} Qa6+ {[%emt 0:00:49]} 45. Ke1 {[%emt 0:00:00]} Ba5+ {[%emt 0:01:51]} 46. Kd1 {[%emt 0:00:00]} Rg1+ {[%emt 0:00:09]} 47. Kc2 {[%emt 0:00:00]} Qc4+ {[%emt 0:00:13]} 0-1

[Event "Swiss National League-A 2024"]
[Site "Luzern"]
[Date "2024.10.12"]
[Round "8.21"]
[White "Salvetti, Manlio Alec"]
[Black "Wyss, Jonas"]
[Result "1-0"]
[ECO "C06"]
[WhiteElo "2129"]
[BlackElo "2281"]
[Annotator "RC"]
[PlyCount "115"]
[EventDate "2023.10.03"]
[EventType "team-tourn"]
[EventCountry "SUI"]
[SourceTitle "playchess.com"]
[Source "ChessBase"]
[SourceQuality "1"]
[TimeControl "40/8400+30:20/3000+30:900+30"]

1. e4 {[%emt 0:40:03]} e6 {[%emt 0:40:18]} 2. d4 {[%emt 0:00:24]} d5 {[%emt 0:00:15]} 3. Nd2 {[%emt 0:01:00]} Nf6 {[%emt 0:01:04]} 4. e5 {[%emt 0:01:50]} Nfd7 {[%emt 0:00:12]} 5. Bd3 {[%emt 0:00:32]} c5 {[%emt 0:00:15]} 6. c3 {[%emt 0:00:06]} Nc6 {[%emt 0:00:12]} 7. Ne2 {[%emt 0:00:10]} cxd4 {[%emt 0:00:14]} 8. cxd4 {[%emt 0:00:05]} f6 {[%emt 0:00:16]} 9. exf6 {[%emt 0:00:07]} Nxf6 {[%emt 0:00:12]} 10. Nf3 {[%emt 0:00:36]} Bd6 {[%emt 0:00:26]} 11. O-O {[%emt 0:02:47]} Qc7 {[%emt 0:00:13]} 12. Nc3 {[%emt 0:00:23]} a6 {[%emt 0:00:10]} 13. h3 {[%emt 0:01:50]} O-O {[%emt 0:03:48]} 14. Be3 {[%emt 0:01:31]} Bd7 {[%emt 0:10:22]} 15. Rc1 {[%emt 0:03:09]} Be8 {[%emt 0:06:22]} 16. Ng5 {[%emt 0:09:59]} Qe7 {[%emt 0:04:56]} 17. f4 {[%emt 0:13:18]} h6 {[%emt 0:17:19]} 18. Nf3 {[%emt 0:01:13]} Bh5 {[%emt 0:00:40]} 19. Qd2 {[%emt 0:06:42]} Bxf3 {[%emt 0:03:05]} 20. Rxf3 {[%emt 0:00:45]} Rad8 {[%emt 0:00:31]} 21. Bb1 {[%emt 0:03:06]} Bb4 {[%emt 0:05:20]} 22. Qc2 {[%emt 0:09:45]} Bxc3 {[%emt 0:07:09]} 23. Qxc3 {[%emt 0:01:36]} Ne4 {[%emt 0:01:44]} 24. Bxe4 {[%emt 0:04:28]} dxe4 {[%emt 0:00:10]} 25. Rg3 {[%emt 0:00:08]} Nb4 {[%emt 0:07:38]} 26. Qb3 {[%emt 0:12:31]} Nd5 {[%emt 0:03:32]} 27. Qc2 {[%emt 0:05:30]} Nxf4 {[%emt 0:11:09]} 28. Rg4 {[%emt 0:02:26]} Qd6 {[%emt 0:02:16]} 29. Rf1 {[%emt 0:03:01]} Nh5 {[%emt 0:06:52]} 30. Rxf8+ {[%emt 0:08:07]} Rxf8 {[%emt 0:00:19]} 31. Rxe4 {[%emt 0:01:42]} Ng3 {[%emt 0:10:12]} 32. Re5 {[%emt 0:00:22]} h5 {[%emt 0:04:23]} 33. Bf2 {[%emt 0:03:36]} h4 {[%emt 0:00:24]} 34. Qc4 {[%emt 0:02:05]} Rf6 {[%emt 0:02:15]} 35. Qc8+ {[%emt 0:02:28]} Kh7 {[%emt 0:01:32]} 36. Qc5 {[%emt 0:03:09]} Qxc5 {[%emt 0:01:56]} 37. dxc5 {[%emt 0:00:11]} Nf5 {[%emt 0:00:19]} 38. b4 {[%emt 0:00:00]} g5 {[%emt 0:00:24]} 39. a4 {[%emt 0:00:00]} Kg6 {[%emt 0:00:56]} 40. b5 {[%emt 0:00:41]} axb5 {[%emt 0:00:34]} 41. axb5 {[%emt 0:50:01]} Ne7 {[%emt 0:19:45]} 42. Be3 {[%emt 0:00:00]} Nf5 {[%emt 0:01:49]} 43. c6 {[%emt 0:00:00]} bxc6 {[%emt 0:00:17]} 44. bxc6 {[%emt 0:00:00]} Nxe3 {[%emt 0:00:22]} 45. Rxe3 {[%emt 0:00:00]} e5 {[%emt 0:00:17]} 46. Rc3 {[%emt 0:00:00]} Rf8 {[%emt 0:00:09]} 47. c7 {[%emt 0:00:00]} Rc8 {[%emt 0:00:07]} 48. Kf2 {[%emt 0:00:00]} Kf5 {[%emt 0:05:50]} 49. Ke3 {[%emt 0:00:00]} Ke6 {[%emt 0:04:07]} 50. Ke4 {[%emt 0:00:00]} Kd6 {[%emt 0:00:09]} 51. Rc4 {[%emt 0:00:00]} Ke6 {[%emt 0:00:59]} 52. Rc6+ {[%emt 0:00:00]} Kd7 {[%emt 0:00:16]} 53. Kd5 {[%emt 0:00:00]} e4 {[%emt 0:02:33]} 54. Rd6+ {[%emt 0:00:00]} Ke7 {[%emt 0:00:22]} 55. Kc6 {[%emt 0:00:00]} Re8 {[%emt 0:02:39]} 56. Rd7+ {[%emt 0:00:00]} Kf6 {[%emt 0:00:44]} 57. Rd8 {[%emt 0:00:00]} Re6+ {[%emt 0:00:20]} 58. Rd6 {[%emt 0:00:00]} 1-0

[Event "Swiss National League-A 2024"]
[Site "Luzern"]
[Date "2024.10.12"]
[Round "8.22"]
[White "Degtiarev, Evgeny"]
[Black "Cacciola, Alfredo"]
[Result "1-0"]
[ECO "E90"]
[WhiteElo "2393"]
[BlackElo "2165"]
[Annotator "RC"]
[PlyCount "129"]
[EventDate "2023.10.03"]
[EventType "team-tourn"]
[EventCountry "SUI"]
[SourceTitle "playchess.com"]
[Source "ChessBase"]
[SourceQuality "1"]
[TimeControl "40/8400+30:20/3000+30:900+30"]

1. d4 {[%emt 0:40:04]} Nf6 {[%emt 0:40:07]} 2. c4 {[%emt 0:00:10]} g6 {[%emt 0:00:08]} 3. Nc3 {[%emt 0:00:09]} Bg7 {[%emt 0:00:06]} 4. e4 {[%emt 0:00:06]} d6 {[%emt 0:00:07]} 5. h3 {[%emt 0:00:06]} O-O {[%emt 0:00:14]} 6. Be3 {[%emt 0:00:42]} e5 {[%emt 0:02:11]} 7. d5 {[%emt 0:00:06]} Na6 {[%emt 0:00:40]} 8. Nf3 {[%emt 0:00:34]} Nc5 {[%emt 0:03:13]} 9. Qc2 {[%emt 0:01:38]} a5 {[%emt 0:01:19]} 10. g4 {[%emt 0:06:06]} c6 {[%emt 0:04:20]} 11. dxc6 {[%emt 0:26:20]} bxc6 {[%emt 0:08:43]} 12. O-O-O {[%emt 0:00:09]} Qe7 {[%emt 0:08:47]} 13. Ne1 {[%emt 0:11:06]} Ne6 {[%emt 0:11:14]} 14. f3 {[%emt 0:00:34]} Nd7 {[%emt 0:03:22]} 15. h4 {[%emt 0:03:18]} Ndc5 {[%emt 0:08:05]} 16. h5 {[%emt 0:10:35]} Bf6 {[%emt 0:19:21]} 17. Nd3 {[%emt 0:20:04]} Bg5 {[%emt 0:08:25]} 18. Bxg5 {[%emt 0:03:14]} Qxg5+ {[%emt 0:00:08]} 19. Qd2 {[%emt 0:00:28]} Nxd3+ {[%emt 0:07:45]} 20. Bxd3 {[%emt 0:00:04]} Qxd2+ {[%emt 0:00:10]} 21. Kxd2 {[%emt 0:00:08]} Nd4 {[%emt 0:00:16]} 22. Ke3 {[%emt 0:00:38]} g5 {[%emt 0:00:51]} 23. c5 {[%emt 0:04:12]} dxc5 {[%emt 0:00:48]} 24. Na4 {[%emt 0:00:29]} Be6 {[%emt 0:06:28]} 25. Nxc5 {[%emt 0:16:41]} Rfd8 {[%emt 0:03:21]} 26. b3 {[%emt 0:01:56]} h6 {[%emt 0:01:12]} 27. Rc1 {[%emt 0:00:10]} Rd6 {[%emt 0:03:23]} 28. Rhd1 {[%emt 0:00:06]} Kf8 {[%emt 0:01:13]} 29. Bf1 {[%emt 0:01:09]} Ra7 {[%emt 0:00:47]} 30. Nd3 {[%emt 0:00:24]} f6 {[%emt 0:00:23]} 31. Nc5 {[%emt 0:00:46]} Ke7 {[%emt 0:00:24]} 32. Rd3 {[%emt 0:00:15]} Rd8 {[%emt 0:03:11]} 33. Na4 {[%emt 0:00:30]} Bc8 {[%emt 0:01:01]} 34. Rdc3 {[%emt 0:00:49]} Be6 {[%emt 0:00:34]} 35. Rc5 {[%emt 0:00:20]} Kd6 {[%emt 0:00:30]} 36. R5c3 {[%emt 0:01:00]} Rb8 {[%emt 0:00:53]} 37. Nc5 {[%emt 0:00:11]} Ke7 {[%emt 0:00:44]} 38. Nxe6 {[%emt 0:02:41]} Kxe6 {[%emt 0:00:05]} 39. Rxc6+ {[%emt 0:00:04]} Nxc6 {[%emt 0:00:41]} 40. Rxc6+ {[%emt 0:00:06]} Ke7 {[%emt 0:00:26]} 41. Bc4 {[%emt 0:50:10]} Rf8 {[%emt 0:12:55]} 42. Bd5 {[%emt 0:00:00]} a4 {[%emt 0:07:41]} 43. b4 {[%emt 0:00:00]} a3 {[%emt 0:14:01]} 44. b5 {[%emt 0:00:00]} Rb7 {[%emt 0:01:17]} 45. Re6+ {[%emt 0:00:00]} Kd7 {[%emt 0:00:36]} 46. Ra6 {[%emt 0:00:00]} Rbb8 {[%emt 0:02:44]} 47. Bc6+ {[%emt 0:00:00]} Kd6 {[%emt 0:00:33]} 48. Rxa3 {[%emt 0:00:00]} Kc5 {[%emt 0:02:52]} 49. Ra7 {[%emt 0:00:00]} Rfd8 {[%emt 0:03:36]} 50. a4 {[%emt 0:00:00]} Rd1 {[%emt 0:04:14]} 51. Rh7 {[%emt 0:00:00]} Ra1 {[%emt 0:03:58]} 52. Rxh6 {[%emt 0:00:00]} Rxa4 {[%emt 0:00:12]} 53. Rxf6 {[%emt 0:00:00]} Rd8 {[%emt 0:00:52]} 54. Bd5 {[%emt 0:00:00]} Ra3+ {[%emt 0:00:22]} 55. Kf2 {[%emt 0:00:00]} Kxb5 {[%emt 0:01:02]} 56. Rf5 {[%emt 0:00:00]} Re8 {[%emt 0:04:04]} 57. Rxg5 {[%emt 0:00:08]} Kc5 {[%emt 0:00:06]} 58. Rf5 {[%emt 0:02:00]} Kd4 {[%emt 0:00:06]} 59. h6 {[%emt 0:02:29]} Rb8 {[%emt 0:01:54]} 60. Rh5 {[%emt 0:01:40]} Rb2+ {[%emt 0:00:33]} 61. Kg3 {[%emt 0:15:13]} Ra1 {[%emt 0:09:32]} 62. Rh3 {[%emt 0:00:00]} Ke3 {[%emt 0:01:40]} 63. h7 {[%emt 0:00:00]} Rg1+ {[%emt 0:00:03]} 64. Kh4 {[%emt 0:00:00]} Rb8 {[%emt 0:00:36]} 65. Bg8 {[%emt 0:00:00]} 1-0

[Event "Swiss National League-A 2024"]
[Site "Luzern"]
[Date "2024.10.12"]
[Round "8.23"]
[White "Medici, Simone"]
[Black "Rodriguez Polo, Mateo"]
[Result "0-1"]
[ECO "B72"]
[WhiteElo "2205"]
[BlackElo "2196"]
[Annotator "RC"]
[PlyCount "81"]
[EventDate "2023.10.03"]
[EventType "team-tourn"]
[EventCountry "SUI"]
[SourceTitle "playchess.com"]
[Source "ChessBase"]
[SourceQuality "1"]
[TimeControl "40/8400+30:20/3000+30:900+30"]

1. e4 {[%emt 0:40:14]} c5 {[%emt 0:40:07]} 2. Nf3 {[%emt 0:02:11]} d6 {[%emt 0:00:06]} 3. d4 {[%emt 0:02:12]} cxd4 {[%emt 0:00:08]} 4. Nxd4 {[%emt 0:00:06]} Nf6 {[%emt 0:00:08]} 5. Nc3 {[%emt 0:02:06]} Nc6 {[%emt 0:00:08]} 6. Be2 {[%emt 0:02:24]} g6 {[%emt 0:00:18]} 7. Be3 {[%emt 0:01:26]} Bg7 {[%emt 0:00:08]} 8. Qd2 {[%emt 0:02:40]} Ng4 {[%emt 0:02:02]} 9. Bxg4 {[%emt 0:07:20]} Bxg4 {[%emt 0:01:32]} 10. f3 {[%emt 0:02:38]} Be6 {[%emt 0:00:07]} 11. Nxc6 {[%emt 0:05:32]} bxc6 {[%emt 0:00:33]} 12. Bd4 {[%emt 0:00:32]} f6 {[%emt 0:05:00]} 13. O-O {[%emt 0:11:51]} O-O {[%emt 0:12:46]} 14. Kh1 {[%emt 0:05:51]} Qa5 {[%emt 0:20:17]} 15. Nb1 {[%emt 0:22:28]} Qa6 {[%emt 0:09:03]} 16. Re1 {[%emt 0:03:07]} Bf7 {[%emt 0:03:39]} 17. Bc3 {[%emt 0:06:40]} Rad8 {[%emt 0:10:27]} 18. Qe2 {[%emt 0:01:48]} Bc4 {[%emt 0:05:23]} 19. Qe3 {[%emt 0:02:43]} e5 {[%emt 0:00:27]} 20. b3 {[%emt 0:01:02]} Be6 {[%emt 0:00:51]} 21. Nd2 {[%emt 0:02:03]} d5 {[%emt 0:02:26]} 22. Bb4 {[%emt 0:02:01]} Rf7 {[%emt 0:04:53]} 23. Qc5 {[%emt 0:04:25]} Qb7 {[%emt 0:06:12]} 24. Qa5 {[%emt 0:01:31]} Rc8 {[%emt 0:02:44]} 25. Bc5 {[%emt 0:01:52]} f5 {[%emt 0:05:34]} 26. Nf1 {[%emt 0:05:05]} Rd7 {[%emt 0:02:26]} 27. Rad1 {[%emt 0:02:54]} Qb5 {[%emt 0:01:06]} 28. Qxb5 {[%emt 0:02:43]} cxb5 {[%emt 0:00:05]} 29. exd5 {[%emt 0:01:41]} Rxd5 {[%emt 0:07:53]} 30. Rxd5 {[%emt 0:01:26]} Bxd5 {[%emt 0:00:04]} 31. Bxa7 {[%emt 0:01:22]} Ra8 {[%emt 0:02:35]} 32. Rd1 {[%emt 0:02:21]} Be6 {[%emt 0:01:03]} 33. Bg1 {[%emt 0:01:11]} Rxa2 {[%emt 0:00:09]} 34. Rd8+ {[%emt 0:00:19]} Kf7 {[%emt 0:00:14]} 35. Rb8 {[%emt 0:01:29]} Ra1 {[%emt 0:02:49]} 36. Rb7+ {[%emt 0:00:21]} Kf6 {[%emt 0:00:59]} 37. Ne3 {[%emt 0:00:42]} Bh6 {[%emt 0:00:19]} 38. Nxf5 {[%emt 0:00:39]} gxf5 {[%emt 0:00:33]} 39. g4 {[%emt 0:00:31]} Be3 {[%emt 0:00:45]} 40. g5+ {[%emt 0:00:27]} Kxg5 {[%emt 0:02:58]} 41. Rxb5 {[%emt 0:00:01]} 0-1

[Event "Swiss National League-A 2024"]
[Site "Luzern"]
[Date "2024.10.12"]
[Round "8.24"]
[White "Gantner, Matthias"]
[Black "Levacic, Damir"]
[Result "1-0"]
[ECO "B07"]
[WhiteElo "2284"]
[BlackElo "2095"]
[Annotator "RC"]
[PlyCount "81"]
[EventDate "2023.10.03"]
[EventType "team-tourn"]
[EventCountry "SUI"]
[SourceTitle "playchess.com"]
[Source "ChessBase"]
[SourceQuality "1"]
[TimeControl "40/8400+30:20/3000+30:900+30"]

1. e4 {[%emt 0:40:03]} g6 {[%emt 0:41:01]} 2. d4 {[%emt 0:00:08]} Bg7 {[%emt 0:00:16]} 3. Nc3 {[%emt 0:01:38]} d6 {[%emt 0:00:25]} 4. Be3 {[%emt 0:00:26]} Nf6 {[%emt 0:02:04]} 5. Qd2 {[%emt 0:00:25]} c6 {[%emt 0:03:38]} 6. a4 {[%emt 0:01:23]} Nbd7 {[%emt 0:15:10]} 7. h3 {[%emt 0:01:19]} Qc7 {[%emt 0:04:51]} 8. f4 {[%emt 0:11:06]} e5 {[%emt 0:04:02]} 9. g4 {[%emt 0:00:59]} exd4 {[%emt 0:03:43]} 10. Bxd4 {[%emt 0:00:27]} O-O {[%emt 0:01:55]} 11. O-O-O {[%emt 0:04:55]} Re8 {[%emt 0:04:17]} 12. Bg2 {[%emt 0:13:49]} Nb6 {[%emt 0:03:43]} 13. g5 {[%emt 0:01:46]} Nh5 {[%emt 0:03:49]} 14. Bxg7 {[%emt 0:00:46]} Kxg7 {[%emt 0:00:34]} 15. Nge2 {[%emt 0:05:06]} d5 {[%emt 0:07:11]} 16. exd5 {[%emt 0:05:56]} Nxd5 {[%emt 0:03:15]} 17. Bxd5 {[%emt 0:01:37]} cxd5 {[%emt 0:03:45]} 18. Nxd5 {[%emt 0:01:02]} Qc4 {[%emt 0:03:39]} 19. Qc3+ {[%emt 0:05:04]} Qxc3 {[%emt 0:00:08]} 20. Nexc3 {[%emt 0:00:06]} Rb8 {[%emt 0:01:37]} 21. h4 {[%emt 0:07:03]} Bg4 {[%emt 0:03:34]} 22. Rde1 {[%emt 0:02:22]} Red8 {[%emt 0:06:47]} 23. Re3 {[%emt 0:06:05]} Rd7 {[%emt 0:03:25]} 24. Rhe1 {[%emt 0:15:33]} Rbd8 {[%emt 0:04:15]} 25. Re7 {[%emt 0:09:35]} Rxd5 {[%emt 0:12:23]} 26. Nxd5 {[%emt 0:00:03]} Rxd5 {[%emt 0:00:06]} 27. Rxb7 {[%emt 0:00:03]} Nxf4 {[%emt 0:05:30]} 28. b3 {[%emt 0:01:27]} Rc5 {[%emt 0:01:17]} 29. Re8 {[%emt 0:01:39]} h6 {[%emt 0:04:16]} 30. gxh6+ {[%emt 0:00:44]} Kxh6 {[%emt 0:00:15]} 31. Rxf7 {[%emt 0:00:18]} Ne2+ {[%emt 0:00:47]} 32. Kb2 {[%emt 0:03:35]} g5 {[%emt 0:00:01]} 33. hxg5+ {[%emt 0:00:20]} Kxg5 {[%emt 0:01:22]} 34. Rg7+ {[%emt 0:00:18]} Kf4 {[%emt 0:00:25]} 35. Rxg4+ {[%emt 0:00:07]} Kxg4 {[%emt 0:00:43]} 36. Rxe2 {[%emt 0:00:27]} Kf4 {[%emt 0:00:28]} 37. b4 {[%emt 0:00:31]} Rc7 {[%emt 0:00:14]} 38. a5 {[%emt 0:00:20]} Kf5 {[%emt 0:00:45]} 39. Kb3 {[%emt 0:00:07]} Rh7 {[%emt 0:00:26]} 40. c4 {[%emt 0:02:07]} Rd7 {[%emt 0:02:31]} 41. b5 {[%emt 0:50:17]} 1-0